fUST/lending_fUST_20240621
["ID","MTS","AMOUNT","RATE_DAILY","PERIOD"]
[330005227,1718922437907,-517.61957829,0.00054794,120]
[330005228,1718922437925,-500.0,0.00054794,120]
[330005229,1718922437943,-804.03,0.00054794,120]
[330005230,1718922437962,-1727.64,0.00054794,120]
[330005231,1718922437981,-1371.56,0.00054794,120]
[330005232,1718922438001,-549.0,0.00054794,7]
[330005233,1718922438021,-500.0,0.00054794,120]
[330005234,1718922438040,-1700.59,0.00054794,120]
[330005235,1718922438060,-641.37,0.00054794,120]
[330005236,1718922438079,-598.85,0.00054794,120]
[330005237,1718922438099,-598.85,0.00054794,120]
[330005238,1718922438118,-598.85,0.00054794,120]
[330005239,1718922438139,-598.85,0.00054794,120]
[330005240,1718922438158,-598.85,0.00054794,120]
[330005241,1718922438176,-598.85,0.00054794,120]
[330005242,1718922438196,-598.85,0.00054794,120]
[330005243,1718922438217,-598.85,0.00054794,120]
[330005244,1718922438236,-500.0,0.00054794,120]
[330005245,1718922438255,-2226.87,0.00054794,120]
[330005246,1718922438273,-500.0,0.00054794,120]
[330005247,1718922438291,-500.0,0.00054794,120]
[330005248,1718922438312,-57021.73,0.00054794,120]
[330005249,1718922438331,-515.34,0.00054794,120]
[330005250,1718922438349,-500.0,0.00054794,120]
[330005251,1718922438368,-500.0,0.00054794,120]
[330005252,1718922438388,-500.0,0.00054794,120]
[330005253,1718922438409,-500.0,0.00054794,120]
[330005254,1718922438431,-530.63421973,0.00054794,120]
[330005255,1718922438451,-500.0,0.00054794,120]
[330005256,1718922438470,-500.0,0.00054794,120]
[330005257,1718922438489,-1147.0,0.00054794,120]
[330005258,1718922438588,-4535.29,0.00054794,21]
[330005259,1718922438609,-3370.55,0.00054794,120]
[330005260,1718922438630,-1156.35,0.00054794,120]
[330005261,1718922438649,-500.0,0.00054794,120]
[330005262,1718922438669,-1032.72,0.00054794,120]
[330005263,1718922438688,-2324.74,0.00054794,120]
[330005264,1718922438708,-500.0,0.00054794,120]
[330005265,1718922438728,-500.0,0.00054794,120]
[330005266,1718922438748,-9214.46,0.00054794,120]
[330005267,1718922438767,-500.0,0.00054794,120]
[330005268,1718922438787,-2034.7,0.00054794,120]
[330005269,1718922438807,-500.0,0.00054794,120]
[330005270,1718922438827,-947.91,0.00054794,120]
[330005271,1718922438847,-500.0,0.00054794,120]
[330005272,1718922438867,-500.0,0.00054794,90]
[330005273,1718922438887,-500.0,0.00054794,120]
[330005274,1718922438906,-414.19896619,0.00054794,120]
[330005275,1718922438925,-500.0,0.00054794,120]
[330005276,1718922438944,-500.0,0.00054794,120]
[330005277,1718922438962,-500.0,0.00054794,120]
[330005278,1718922438981,-500.0,0.00054794,120]
[330005279,1718922439001,-500.0,0.00054794,120]
[330005280,1718922439021,-500.0,0.00054794,120]
[330005281,1718922439040,-500.0,0.00054794,120]
[330005282,1718922439059,-644.8,0.00054794,120]
[330005283,1718922439077,-828.42,0.00054794,120]
[330005284,1718922439096,-1380.03,0.00054794,120]
[330005285,1718922439116,-24359.26,0.00054794,120]
[330005286,1718922439138,-500.0,0.00054794,120]
[330005287,1718922439157,-853.22,0.00054794,120]
[330005288,1718922439177,-1248.73,0.00054794,120]
[330005289,1718922439198,-500.0,0.00054794,120]
[330005290,1718922439218,-500.0,0.00054794,120]
[330005291,1718922439237,-1574.43,0.00054794,120]
[330005292,1718922439256,-285.84551643,0.00054794,120]
[330005293,1718922439274,-500.0,0.00054794,120]
[330005294,1718922439293,-1448.93,0.00054794,120]
[330005295,1718922439314,-2.43111112,0.00054794,120]
[330005296,1718922448098,-402.0434323,0.00054793,40]
[330005348,1718922548131,-180.787825,0.0003958,2]
[330005349,1718922548153,-156.93582164,0.00042766,30]
[330005367,1718922632343,-156.93582164,0.00053458,60]
[330005368,1718922632355,-179.00290383,0.00054299,15]
[330005369,1718922632369,-58.99709617,0.00054299,15]
[330005370,1718922632379,-1141.85822535,0.000543,120]
[330005371,1718922632486,-5000.5389,0.000543,120]
[330005372,1718922632499,-2723.60287465,0.000543,120]
[330005373,1718922632509,-824.87139108,0.00054479,40]
[330005401,1718922639609,-1605.78629806,0.00054479,40]
[330005402,1718922639619,-2001.10461758,0.000547,86]
[330005403,1718922639628,-1000.0,0.00054793,120]
[330005404,1718922639638,-151.0,0.00054793,40]
[330005405,1718922639647,-500.0,0.00054794,120]
[330005406,1718922639656,-731.13,0.00054794,120]
[330005407,1718922639666,-500.0,0.00054794,120]
[330005408,1718922639676,-500.0,0.00054794,120]
[330005409,1718922639685,-594.65071846,0.00054794,120]
[330005410,1718922639697,-500.0,0.00054794,120]
[330005411,1718922639707,-2440.55,0.00054794,120]
[330005412,1718922639717,-500.0,0.00054794,120]
[330005413,1718922639726,-500.0,0.00054794,120]
[330005414,1718922639736,-500.0,0.00054794,120]
[330005415,1718922639746,-821.28,0.00054794,120]
[330005416,1718922639756,-500.0,0.00054794,120]
[330005417,1718922639768,-500.0,0.00054794,120]
[330005418,1718922639787,-502.77305825,0.00054794,120]
[330005419,1718922639797,-500.0,0.00054794,120]
[330005420,1718922639807,-500.0,0.00054794,120]
[330005421,1718922639816,-500.0,0.00054794,120]
[330005422,1718922639826,-1227.37,0.00054794,120]
[330005423,1718922639835,-1000.0,0.00054794,120]
[330005424,1718922639845,-860.38,0.00054794,120]
[330005425,1718922639855,-622.2,0.00054794,120]
[330005426,1718922639865,-500.0,0.00054794,120]
[330005427,1718922639875,-500.0,0.00054794,120]
[330005428,1718922639885,-635.88,0.00054794,120]
[330005429,1718922639895,-3251.37,0.00054794,120]
[330005430,1718922640027,-500.0,0.00054794,30]
[330005431,1718922640036,-500.0,0.00054794,120]
[330005432,1718922640046,-714.43,0.00054794,120]
[330005433,1718922640056,-500.0,0.00054794,120]
[330005434,1718922640066,-500.0,0.00054794,120]
[330005435,1718922640076,-1488.44,0.00054794,120]
[330005436,1718922640085,-500.0,0.00054794,120]
[330005437,1718922640095,-500.0,0.00054794,120]
[330005438,1718922640104,-500.0,0.00054794,120]
[330005439,1718922640114,-3152.67,0.00054794,120]
[330005440,1718922640124,-500.0,0.00054794,120]
[330005441,1718922640134,-637.14,0.00054794,120]
[330005442,1718922640144,-500.0,0.00054794,60]
[330005443,1718922640153,-500.0,0.00054794,120]
[330005444,1718922640164,-626.05,0.00054794,120]
[330005445,1718922640174,-10082.51861586,0.00054794,120]
[330005446,1718922640194,-3865.9,0.00054794,120]
[330005457,1718922640850,-3422.91777674,0.00054794,120]
[330005464,1718922644042,-228.54403186,0.00052694,4]
[330005465,1718922644052,-271.45596814,0.00054794,120]
[330005490,1718922646565,-228.54403186,0.00054794,120]
[330005492,1718922646575,-500.0,0.00054794,120]
[330005494,1718922646584,-566.62,0.00054794,120]
[330005496,1718922646594,-500.0,0.00054794,120]
[330005497,1718922646603,-542.53,0.00054794,120]
[330005499,1718922646612,-500.0,0.00054794,120]
[330005501,1718922646621,-500.0,0.00054794,120]
[330005502,1718922646630,-500.0,0.00054794,120]
[330005503,1718922646639,-500.0,0.00054794,120]
[330005505,1718922646648,-500.0,0.00054794,120]
[330005506,1718922646658,-500.0,0.00054794,120]
[330005507,1718922646667,-500.0,0.00054794,120]
[330005508,1718922646676,-1676.03,0.00054794,120]
[330005509,1718922646685,-1629.73,0.00054794,120]
[330005510,1718922646694,-54645.82,0.00054794,120]
[330005511,1718922646705,-1232.04,0.00054794,120]
[330005512,1718922646714,-1212.89,0.00054794,120]
[330005513,1718922646723,-500.0,0.00054794,120]
[330005514,1718922646732,-500.0,0.00054794,120]
[330005515,1718922646742,-1724.19,0.00054794,120]
[330005516,1718922646752,-500.0,0.00054794,120]
[330005517,1718922646761,-4346.32,0.00054794,21]
[330005518,1718922646770,-500.0,0.00054794,120]
[330005519,1718922646779,-2525.49,0.00054794,120]
[330005520,1718922646789,-1099.21,0.00054794,120]
[330005521,1718922646798,-500.0,0.00054794,120]
[330005522,1718922646808,-7948.9,0.00054794,120]
[330005523,1718922646817,-500.0,0.00054794,120]
[330005524,1718922646828,-2227.88,0.00054794,120]
[330005525,1718922646838,-989.69,0.00054794,120]
[330005526,1718922646847,-1108.17,0.00054794,120]
[330005527,1718922646856,-832.25,0.00054794,120]
[330005528,1718922646866,-8830.52,0.00054794,120]
[330005529,1718922646875,-500.0,0.00054794,120]
[330005530,1718922646885,-1949.93,0.00054794,120]
[330005531,1718922646894,-500.0,0.00054794,120]
[330005532,1718922646903,-500.0,0.00054794,120]
[330005533,1718922646913,-500.0,0.00054794,120]
[330005534,1718922646922,-500.0,0.00054794,120]
[330005535,1718922646931,-500.0,0.00054794,120]
[330005536,1718922646941,-154.21606346,0.00054794,120]
[330005537,1718922646950,-500.0,0.00054794,90]
[330005538,1718922646960,-500.0,0.00054794,120]
[330005539,1718922646969,-500.0,0.00054794,120]
[330005540,1718922646977,-1362.48,0.00054794,120]
[330005541,1718922646987,-500.0,0.00054794,120]
[330005542,1718922646996,-1322.53,0.00054794,120]
[330005543,1718922647005,-1689.96,0.00054794,120]
[330005544,1718922647014,-500.0,0.00054794,120]
[330005545,1718922647023,-793.9,0.00054794,120]
[330005546,1718922647033,-500.0,0.00054794,120]
[330005547,1718922647042,-500.0,0.00054794,120]
[330005548,1718922647052,-500.0,0.00054794,120]
[330005549,1718922647061,-1196.7,0.00054794,120]
[330005550,1718922647070,-817.67,0.00054794,120]
[330005551,1718922647080,-23344.3,0.00054794,120]
[330005552,1718922647090,-500.0,0.00054794,120]
[330005553,1718922647099,-500.0,0.00054794,120]
[330005554,1718922647108,-500.0,0.00054794,120]
[330005555,1718922647118,-2508.32,0.00054794,120]
[330005556,1718922647127,-1388.56,0.00054794,120]
[330005557,1718922647137,-715.53,0.00054794,120]
[330005558,1718922647146,-11112.4,0.00054794,120]
[330005559,1718922647250,-500.0,0.00054794,120]
[330005560,1718922647260,-500.0,0.00054794,120]
[330005561,1718922647271,-500.0,0.00054794,120]
[330005562,1718922647280,-500.0,0.00054794,120]
[330005563,1718922647290,-579.99,0.00054794,120]
[330005564,1718922647300,-530.35804425,0.00054794,120]
[330005565,1718922647309,-500.0,0.00054794,120]
[330005566,1718922647318,-500.0,0.00054794,7]
[330005567,1718922647327,-9343.64,0.00054794,120]
[330005568,1718922647336,-574.62,0.00054794,120]
[330005569,1718922647346,-500.0,0.00054794,120]
[330005570,1718922647356,-484.95344661,0.00054794,120]
[330005571,1718922647367,-500.0,0.00054794,120]
[330005572,1718922647377,-500.0,0.00054794,120]
[330005573,1718922647387,-500.0,0.00054794,120]
[330005574,1718922647396,-500.0,0.00054794,120]
[330005575,1718922647405,-500.0,0.00054794,120]
[330005576,1718922647415,-500.0,0.00054794,120]
[330005577,1718922647424,-652.29,0.00054794,120]
[330005578,1718922647432,-855.03,0.00054794,120]
[330005579,1718922647442,-2343.5,0.00054794,120]
[330005580,1718922647451,-500.0,0.00054794,120]
[330005581,1718922647460,-748.05,0.00054794,120]
[330005582,1718922647470,-500.0,0.00054794,120]
[330005583,1718922647479,-523.6033777,0.00054794,120]
[330005584,1718922647488,-1430.89,0.00054794,120]
[330005585,1718922647497,-1430.89,0.00054794,120]
[330005586,1718922647507,-1430.89,0.00054794,120]
[330005587,1718922647516,-500.0,0.00054794,120]
[330005588,1718922647525,-1430.89,0.00054794,120]
[330005589,1718922647534,-1430.89,0.00054794,120]
[330005590,1718922647543,-1430.89,0.00054794,120]
[330005591,1718922647553,-1430.89,0.00054794,120]
[330005592,1718922647562,-1430.89,0.00054794,120]
[330005593,1718922647571,-1430.89,0.00054794,120]
[330005594,1718922647580,-1430.89,0.00054794,120]
[330005595,1718922647588,-1430.89,0.00054794,120]
[330005596,1718922647598,-1430.89,0.00054794,120]
[330005597,1718922647614,-500.0,0.00054794,120]
[330005598,1718922647624,-5684.29,0.00054794,120]
[330005599,1718922647634,-500.0,0.00054794,120]
[330005600,1718922647643,-500.0,0.00054794,120]
[330005601,1718922647652,-500.0,0.00054794,120]
[330005602,1718922647662,-6107.6,0.00054794,120]
[330005603,1718922647671,-151.0,0.00054794,120]
[330005604,1718922647681,-265.14712728,0.00054794,120]
[330005605,1718922647690,-500.0,0.00054794,120]
[330005606,1718922647701,-340.51226422,0.00054794,120]
[330005607,1718922647711,-1992.82,0.00054794,120]
[330005608,1718922647721,-500.0,0.00054794,120]
[330005609,1718922647731,-500.0,0.00054794,120]
[330005610,1718922647742,-1405.54,0.00054794,120]
[330005611,1718922647752,-500.0,0.00054794,120]
[330005612,1718922647762,-500.0,0.00054794,120]
[330005613,1718922647771,-500.0,0.00054794,120]
[330005614,1718922647781,-500.0,0.00054794,120]
[330005615,1718922647790,-589.31,0.00054794,120]
[330005616,1718922647800,-500.0,0.00054794,120]
[330005617,1718922647809,-500.0,0.00054794,120]
[330005618,1718922647819,-500.0,0.00054794,120]
[330005619,1718922647829,-500.0,0.00054794,120]
[330005620,1718922647838,-841.54,0.00054794,120]
[330005621,1718922647848,-3115.9,0.00054794,120]
[330005622,1718922647858,-19445.48,0.00054794,120]
[330005623,1718922647869,-511.4836172,0.00054794,120]
[330005624,1718922647878,-500.0,0.00054794,120]
[330005625,1718922647889,-3021.31,0.00054794,120]
[330005626,1718922647899,-500.0,0.00054794,120]
[330005627,1718922647909,-593.0,0.000548,30]
[330005628,1718922647919,-221.3829,0.000548,30]
[330005629,1718922647928,-500.0,0.00054999,120]
[330005630,1718922647937,-500.0,0.00054999,120]
[330005631,1718922647947,-1430.89,0.00054999,120]
[330005632,1718922647958,-1430.89,0.00054999,120]
[330005633,1718922647967,-62786.13833176,0.00055,120]
[330005634,1718922647975,-2625.689848,0.00055,120]
[330005635,1718922647989,-151.0,0.00055,120]
[330005636,1718922647999,-151.0,0.00055,120]
[330005637,1718922648010,-151.0,0.00055,120]
[330005638,1718922648020,-151.0,0.00055,120]
[330005639,1718922648030,-920.617903,0.00055,120]
[330005640,1718922648039,-920.617903,0.00055,120]
[330005641,1718922648048,-151.0,0.00055,120]
[330005642,1718922648058,-151.0,0.00055,120]
[330005643,1718922648066,-275.995455,0.00055,120]
[330005644,1718922648076,-275.995455,0.00055,120]
[330005645,1718922648085,-151.0,0.00055,120]
[330005646,1718922648094,-151.0,0.00055,120]
[330005647,1718922648103,-151.0,0.00055,120]
[330005648,1718922648112,-151.0,0.00055,120]
[330005649,1718922648122,-151.0,0.00055,120]
[330005650,1718922648131,-151.709039,0.00055,120]
[330005651,1718922648140,-151.0,0.00055,120]
[330005652,1718922648150,-151.0,0.00055,120]
[330005653,1718922648159,-151.0,0.00055,120]
[330005654,1718922648168,-1000.0,0.00055,120]
[330005655,1718922648177,-151.0,0.00055,120]
[330005656,1718922648190,-1103.11669,0.00055,120]
[330005657,1718922648201,-1103.11669,0.00055,120]
[330005658,1718922648210,-151.0,0.00055,120]
[330005659,1718922648219,-222.97659606,0.00055067,90]
[330005660,1718922648229,-500.0,0.00055067,120]
[330005661,1718922648238,-500.0,0.00055067,120]
[330005662,1718922648247,-500.0,0.00055067,120]
[330005663,1718922648257,-500.0,0.00055067,120]
[330005664,1718922648267,-500.0,0.00055067,120]
[330005665,1718922648275,-500.0,0.00055067,120]
[330005666,1718922648285,-500.0,0.00055067,120]
[330005667,1718922648294,-500.0,0.00055067,120]
[330005668,1718922648304,-1430.89,0.00055067,120]
[330005669,1718922648313,-1430.89,0.00055067,120]
[330005670,1718922648325,-1430.89,0.00055067,120]
[330005671,1718922648334,-1430.89,0.00055067,120]
[330005672,1718922648344,-1430.89,0.00055067,120]
[330005673,1718922648353,-1430.89,0.00055067,120]
[330005674,1718922648363,-1430.89,0.00055067,120]
[330005675,1718922648372,-1430.89,0.00055067,120]
[330005676,1718922648381,-1430.89,0.00055067,120]
[330005677,1718922648390,-1430.91922011,0.00055067,120]
[330005678,1718922648400,-500.0,0.00055068,120]
[330005679,1718922648410,-500.0,0.00055068,120]
[330005680,1718922648419,-627.76,0.00055068,120]
[330005681,1718922648429,-500.0,0.00055068,4]
[330005682,1718922648437,-500.0,0.00055068,120]
[330005683,1718922648446,-500.0,0.00055068,120]
[330005684,1718922648456,-1446.0,0.00055068,120]
[330005685,1718922648465,-500.0,0.00055068,120]
[330005686,1718922648475,-500.0,0.00055068,120]
[330005687,1718922648484,-500.0,0.00055068,120]
[330005688,1718922648494,-500.0,0.00055068,120]
[330005689,1718922648503,-500.0,0.00055068,120]
[330005690,1718922648512,-500.0,0.00055068,120]
[330005691,1718922648521,-281.4,0.00055068,120]
[330005692,1718922648530,-500.0,0.00055068,120]
[330005693,1718922648539,-500.0,0.00055068,120]
[330005694,1718922648548,-151.0,0.00055068,120]
[330005695,1718922648557,-151.0,0.00055068,120]
[330005696,1718922648567,-151.0,0.00055068,120]
[330005697,1718922648577,-500.0,0.00055068,120]
[330005698,1718922648586,-1000.0,0.00055068,120]
[330005699,1718922648596,-500.0,0.00055068,120]
[330005700,1718922648605,-1321.1,0.00055068,120]
[330005701,1718922648615,-500.0,0.00055068,120]
[330005702,1718922648625,-503.53612767,0.00055068,120]
[330005703,1718922648635,-500.0,0.00055068,120]
[330005704,1718922648645,-517.80974259,0.00055068,120]
[330005705,1718922648655,-552.46,0.00055068,120]
[330005706,1718922648664,-654.74,0.00055068,120]
[330005707,1718922648674,-500.0,0.00055068,120]
[330005708,1718922648683,-500.0,0.00055068,120]
[330005709,1718922648692,-500.0,0.00055068,120]
[330005710,1718922648702,-500.0,0.00055068,120]
[330005711,1718922648711,-151.0,0.00055068,120]
[330005712,1718922648720,-500.0,0.00055068,120]
[330005713,1718922648729,-200.0,0.00055068,7]
[330005714,1718922648739,-500.0,0.00055068,120]
[330005715,1718922648748,-500.0,0.00055068,120]
[330005716,1718922648757,-500.0,0.00055068,120]
[330005717,1718922648766,-500.0,0.00055068,120]
[330005718,1718922648775,-500.0,0.00055068,20]
[330005719,1718922648784,-500.0,0.00055068,2]
[330005720,1718922648794,-500.0,0.00055068,120]
[330005721,1718922648803,-500.0,0.00055068,120]
[330005722,1718922648812,-151.0,0.00055068,120]
[330005723,1718922648822,-151.0,0.00055068,120]
[330005724,1718922648831,-151.0,0.00055068,120]
[330005725,1718922648840,-500.0,0.00055068,120]
[330005726,1718922648849,-500.0,0.00055068,120]
[330005727,1718922648858,-500.0,0.00055068,120]
[330005728,1718922648867,-490.50475209,0.00055068,120]
[330005729,1718922648876,-2638.59,0.00055068,60]
[330005730,1718922648885,-757.51,0.00055068,120]
[330005731,1718922648895,-175.23945367,0.00055068,120]
[330005732,1718922648903,-151.0,0.00055068,120]
[330005733,1718922648913,-151.0,0.00055068,120]
[330005734,1718922648923,-151.0,0.00055068,120]
[330005735,1718922648933,-557.6,0.00055068,120]
[330005736,1718922648942,-500.0,0.00055068,120]
[330005737,1718922648953,-151.0,0.00055068,120]
[330005738,1718922648962,-151.0,0.00055068,120]
[330005739,1718922648971,-151.0,0.00055068,120]
[330005740,1718922648981,-500.0,0.00055068,120]
[330005741,1718922648990,-1328.39,0.00055068,120]
[330005742,1718922649000,-500.0,0.00055068,120]
[330005743,1718922649009,-500.0,0.00055068,120]
[330005744,1718922649018,-452.70995429,0.00055068,120]
[330005745,1718922649028,-500.0,0.00055068,120]
[330005746,1718922649037,-512.54055808,0.00055068,120]
[330005747,1718922649048,-500.0,0.00055068,120]
[330005748,1718922649057,-500.0,0.00055068,2]
[330005749,1718922649066,-151.0,0.00055068,120]
[330005750,1718922649075,-151.0,0.00055068,120]
[330005751,1718922649084,-151.0,0.00055068,120]
[330005752,1718922649174,-151.0,0.00055068,120]
[330005753,1718922649184,-151.0,0.00055068,120]
[330005754,1718922649199,-589.34499721,0.00055068,120]
[330005755,1718922649208,-500.0,0.00055068,120]
[330005756,1718922649217,-2207.47,0.00055068,120]
[330005757,1718922649228,-500.0,0.00055068,120]
[330005758,1718922649239,-2626.4,0.00055068,120]
[330005759,1718922649249,-500.0,0.00055068,120]
[330005760,1718922649259,-500.0,0.00055068,120]
[330005761,1718922649271,-920.617903,0.00055068,120]
[330005762,1718922649280,-920.617903,0.00055068,120]
[330005763,1718922649290,-920.617903,0.00055068,120]
[330005764,1718922649299,-920.617903,0.00055068,120]
[330005765,1718922649309,-920.617903,0.00055068,120]
[330005766,1718922649318,-920.617903,0.00055068,120]
[330005767,1718922649326,-500.0,0.00055068,120]
[330005768,1718922649335,-500.0,0.00055068,120]
[330005769,1718922649344,-500.0,0.00055068,120]
[330005770,1718922649354,-500.0,0.00055068,120]
[330005771,1718922649363,-500.0,0.00055068,120]
[330005772,1718922649373,-151.0,0.00055068,120]
[330005773,1718922649382,-151.0,0.00055068,120]
[330005774,1718922649391,-500.0,0.00055068,120]
[330005775,1718922649400,-500.0,0.00055068,120]
[330005776,1718922649408,-804.03,0.00055068,120]
[330005777,1718922649417,-151.0,0.00055068,120]
[330005778,1718922649427,-1727.64,0.00055068,120]
[330005779,1718922649436,-1371.56,0.00055068,120]
[330005780,1718922649444,-549.0,0.00055068,7]
[330005781,1718922649454,-641.37,0.00055068,120]
[330005782,1718922649463,-508.9847151,0.00055068,120]
[330005783,1718922649473,-2226.87,0.00055068,120]
[330005784,1718922649481,-500.0,0.00055068,120]
[330005785,1718922649491,-500.0,0.00055068,120]
[330005786,1718922649501,-151.0,0.00055068,120]
[330005787,1718922649510,-500.0,0.00055068,120]
[330005788,1718922649520,-500.0,0.00055068,120]
[330005789,1718922649529,-500.0,0.00055068,120]
[330005790,1718922649538,-500.0,0.00055068,120]
[330005791,1718922649548,-500.0,0.00055068,120]
[330005792,1718922649558,-500.0,0.00055068,120]
[330005793,1718922649568,-275.995455,0.00055068,120]
[330005794,1718922649577,-275.995455,0.00055068,120]
[330005795,1718922649587,-275.995455,0.00055068,120]
[330005796,1718922649596,-275.995455,0.00055068,120]
[330005797,1718922649604,-275.995455,0.00055068,120]
[330005798,1718922649614,-275.995455,0.00055068,120]
[330005799,1718922649623,-500.0,0.00055068,120]
[330005800,1718922649633,-500.0,0.00055068,120]
[330005801,1718922649642,-151.0,0.00055068,120]
[330005802,1718922649652,-151.0,0.00055068,120]
[330005803,1718922649662,-151.0,0.00055068,120]
[330005804,1718922649671,-186.23699,0.00055068,120]
[330005805,1718922649682,-947.91,0.00055068,120]
[330005806,1718922649692,-151.0,0.00055068,120]
[330005807,1718922649701,-500.0,0.00055068,120]
[330005808,1718922649710,-151.0,0.00055068,120]
[330005809,1718922649720,-151.0,0.00055068,120]
[330005810,1718922649730,-500.0,0.00055068,120]
[330005811,1718922649740,-500.0,0.00055068,120]
[330005812,1718922649749,-581.33,0.00055068,120]
[330005813,1718922649759,-535.67885654,0.00055068,120]
[330005814,1718922649769,-151.0,0.00055068,120]
[330005815,1718922649779,-151.0,0.00055068,120]
[330005816,1718922649788,-500.0,0.00055068,120]
[330005817,1718922649797,-644.8,0.00055068,120]
[330005818,1718922649806,-500.0,0.00055068,120]
[330005819,1718922649816,-500.0,0.00055068,120]
[330005820,1718922649827,-500.0,0.00055068,120]
[330005821,1718922649836,-1574.43,0.00055068,120]
[330005822,1718922649846,-500.0,0.00055068,120]
[330005823,1718922649856,-731.13,0.00055068,120]
[330005824,1718922649866,-500.0,0.00055068,120]
[330005825,1718922649876,-548.14064899,0.00055068,120]
[330005826,1718922649887,-506.63225553,0.00055068,120]
[330005827,1718922649896,-2440.55,0.00055068,120]
[330005828,1718922649906,-151.0,0.00055068,120]
[330005829,1718922649915,-151.0,0.00055068,120]
[330005830,1718922649925,-156.284908,0.00055068,120]
[330005831,1718922649934,-500.0,0.00055068,120]
[330005832,1718922649944,-500.0,0.00055068,120]
[330005833,1718922649955,-500.0,0.00055068,120]
[330005834,1718922649964,-821.28,0.00055068,120]
[330005835,1718922649973,-157.17599632,0.00055068,120]
[330005836,1718922649983,-500.0,0.00055068,120]
[330005837,1718922649992,-500.0,0.00055068,120]
[330005838,1718922650001,-500.0,0.00055068,120]
[330005839,1718922650010,-506.82043498,0.00055068,120]
[330005840,1718922650019,-151.709039,0.00055068,120]
[330005841,1718922650028,-151.709039,0.00055068,120]
[330005842,1718922650038,-151.709039,0.00055068,120]
[330005843,1718922650047,-1227.37,0.00055068,120]
[330005844,1718922650057,-296.2822189,0.00055068,120]
[330005845,1718922650067,-860.38,0.00055068,120]
[330005846,1718922650076,-622.2,0.00055068,120]
[330005847,1718922650085,-500.0,0.00055068,120]
[330005848,1718922650094,-500.0,0.00055068,120]
[330005849,1718922650103,-635.88,0.00055068,120]
[330005850,1718922650113,-157.939075,0.00055068,120]
[330005851,1718922650122,-500.0,0.00055068,30]
[330005852,1718922650131,-151.0,0.00055068,120]
[330005853,1718922650141,-151.0,0.00055068,120]
[330005854,1718922650150,-151.0,0.00055068,120]
[330005855,1718922650159,-151.0,0.00055068,120]
[330005856,1718922650168,-500.0,0.00055068,120]
[330005857,1718922650178,-714.43,0.00055068,120]
[330005858,1718922650191,-500.0,0.00055068,120]
[330005859,1718922650202,-500.0,0.00055068,120]
[330005860,1718922650210,-1488.44,0.00055068,120]
[330005861,1718922650220,-500.0,0.00055068,120]
[330005862,1718922650230,-637.14,0.00055068,120]
[330005863,1718922650239,-500.0,0.00055068,60]
[330005864,1718922650249,-500.0,0.00055068,120]
[330005865,1718922650258,-626.05,0.00055068,120]
[330005866,1718922650270,-500.0,0.00055068,120]
[330005867,1718922650279,-500.0,0.00055068,120]